bitfinex/quotes_SOLUSD_20240921
["timestamp","ask_amount","ask_price","bid_price","bid_amount"]
[1726929579273,0.25098,149.37,149.33,6.6961]
[1726929581864,1.07550229,149.37,149.33,6.6961]
[1726929582189,0.25098,149.37,149.33,6.6961]
[1726929582680,1.07550229,149.37,149.33,6.6961]
[1726929583796,0.25098,149.37,149.33,6.6961]
[1726929583995,0.82452229,149.36,149.33,6.6961]
[1726929584377,0.82452229,149.36,149.32,16.7423]
[1726929584598,0.12549,149.35,149.32,23.4392]
[1726929585284,0.12549,149.36,149.32,23.4392]
[1726929585874,0.12549,149.36,149.33,6.6963]
[1726929588891,0.12549,149.36,149.32,23.4392]
[1726929590799,6.82109,149.36,149.32,16.7423]
[1726929590992,0.12549,149.35,149.31,6.6974]
[1726929591197,0.12549,149.36,149.32,6.6969]
[1726929591583,0.12549,149.35,149.32,6.6969]
[1726929593306,0.12549,149.35,149.31,23.4405]
[1726929593508,0.12549,149.34,149.31,23.4405]
[1726929594794,20.0,149.39,149.33,16.7407]
[1726929594795,20.0,149.36,149.33,16.7407]
[1726929594994,20.0,149.36,149.33,23.4371]
[1726929595700,20.0,149.36,149.33,16.7407]
[1726929595884,20.82452229,149.36,149.33,16.7407]
[1726929596210,0.95001229,149.35,149.33,16.7407]
[1726929596502,0.12549,149.35,149.33,16.7407]
[1726929597695,20.0,149.39,149.34,6.6961]
[1726929598016,26.6942,149.39,149.34,6.6961]
[1726929598896,0.25098,149.38,149.34,6.6961]
[1726929600315,1.07550229,149.38,149.34,6.6961]
[1726929600519,0.12549,149.36,149.34,6.6961]
[1726929601021,0.12549,149.36,149.33,23.4371]
[1726929602100,20.0,149.39,149.36,6.695]
[1726929602918,0.82452229,149.38,149.32,16.7421]
[1726929603216,20.25098,149.37,149.33,6.6964]
[1726929603812,6.94588,149.37,149.33,6.6964]
[1726929604010,20.82452229,149.36,149.33,6.6964]
[1726929604642,20.0,149.34,149.3,6.6975]
[1726929604815,20.0,149.34,149.26,16.7489]
[1726929604816,0.25098,149.32,149.26,16.7489]
[1726929605134,20.12549,149.29,149.26,6.6996]
[1726929605506,20.25098,149.29,149.25,6.7]
[1726929605927,20.25098,149.29,149.25,6.7001]
[1726929606410,0.25098,149.29,149.25,6.7001]
[1726929606728,20.25098,149.29,149.25,6.7001]
[1726929607709,20.25098,149.29,149.24,0.3235002]
[1726929607710,27.77380229,149.29,149.24,0.3235002]
[1726929607909,27.77380229,149.29,149.24,7.0239002]
[1726929608227,21.07550229,149.29,149.25,6.7001]
[1726929609030,6.697,149.32,149.27,6.6992]
[1726929609334,20.0,149.31,149.28,6.9536611]
[1726929609517,20.0,149.33,149.29,6.6982]
[1726929610118,16.7371,149.37,149.28,0.2548611]
[1726929610119,6.6951,149.37,149.3,16.7445]
[1726929610317,6.6951,149.37,149.32,6.6966]
[1726929610522,6.6949,149.37,149.31,6.697]
[1726929610832,0.82452229,149.36,149.31,6.697]
[1726929611427,0.12549,149.35,149.31,6.697]
[1726929612531,0.12549,149.35,149.32,6.6969]
[1726929614217,20.0,149.37,149.33,0.5443833]
[1726929614540,20.0,149.37,149.35,6.6953]
[1726929617128,22.18,149.38,149.3,33.4888]
[1726929617336,0.12549,149.39,149.36,16.7373]
[1726929617519,20.0,149.41,149.36,23.4324]
[1726929617831,0.82452229,149.4,149.36,23.4324]
[1726929618211,20.0,149.39,149.36,16.7373]
[1726929618411,0.82452229,149.38,149.36,16.7373]
[1726929618923,0.82452229,149.38,149.35,6.6956]
[1726929619421,20.0,149.38,149.35,6.6956]
[1726929621835,0.12549,149.38,149.35,6.6956]
[1726929624639,20.95001229,149.38,149.34,6.696]
[1726929625029,20.12549,149.38,149.34,6.696]
[1726929627140,20.95001229,149.38,149.34,6.696]
[1726929627345,7.64431229,149.38,149.33,23.4375]
[1726929627546,20.0,149.37,149.33,23.4375]
[1726929627748,0.82452229,149.36,149.33,23.4375]
[1726929629129,20.0,149.37,149.34,6.6961]
[1726929633325,6.81979,149.38,149.33,16.741]
[1726929633326,0.12549,149.38,149.33,16.741]
[1726929634239,0.12549,149.38,149.34,6.6961]
[1726929634554,20.12549,149.38,149.34,6.6961]
[1726929634753,0.12549,149.38,149.34,6.6961]
[1726929635228,6.81979,149.38,149.34,6.6961]
[1726929635429,20.0,149.37,149.34,6.6961]
[1726929636729,20.12549,149.38,149.35,6.6956]
[1726929636930,20.0,149.38,149.36,6.6951]
[1726929637445,20.0,149.4,149.36,6.6951]
[1726929637633,20.0,149.39,149.36,6.6951]
[1726929637830,20.0,149.39,149.35,16.7386]
[1726929638027,22.18,149.42,149.36,3.71886294]
[1726929638231,0.2548611,149.44,149.4,6.6933]
[1726929638839,0.82452229,149.43,149.39,23.4278]
[1726929639134,7.51702229,149.43,149.39,16.734]
[1726929639353,0.82452229,149.43,149.38,6.6943]
[1726929639860,0.25098,149.42,149.38,6.6943]
[1726929640030,0.82452229,149.41,149.38,6.6943]
[1726929640349,20.82452229,149.41,149.38,6.6943]
[1726929642052,20.0,149.41,149.38,6.6943]
[1726929642242,0.25098,149.42,149.39,6.6938]
[1726929643029,0.12549,149.43,149.39,6.6938]
[1726929643337,20.12549,149.43,149.39,6.6937]
[1726929643651,27.64211229,149.43,149.39,6.6937]
[1726929643957,27.64211229,149.43,149.38,16.7348]
[1726929644157,27.64211229,149.43,149.38,23.429]
[1726929644361,6.6926,149.42,149.38,23.429]
[1726929644534,20.82452229,149.41,149.38,23.429]
[1726929645258,20.82452229,149.41,149.38,16.7348]
[1726929645456,20.0,149.41,149.38,16.7348]
[1726929646244,0.82452229,149.4,149.36,9.0749]
[1726929646563,0.82452229,149.4,149.36,6.6949]
[1726929647143,6.81979,149.38,149.32,16.742]
[1726929647460,7.64481229,149.37,149.33,6.6965]
[1726929647866,0.12549,149.36,149.3,6.6977]
[1726929648161,0.25098,149.34,149.29,16.7455]
[1726929648343,0.25098,149.34,149.3,6.6978]
[1726929649743,6.94708,149.34,149.3,6.6978]
[1726929649957,28.53328,149.34,149.29,23.4438]
[1726929650264,28.53328,149.34,149.28,0.2548611]
[1726929650265,20.0,149.33,149.28,0.2548611]
[1726929650461,0.25098,149.32,149.28,6.9535611]
[1726929651862,20.0,149.33,149.3,6.6978]
[1726929654267,20.0,149.33,149.31,6.6974]
[1726929654566,6.6952,149.36,149.32,6.697]
[1726929655247,20.0,149.35,149.31,6.6974]
[1726929656044,0.12549,149.34,149.31,6.6974]
[1726929656560,0.12549,149.34,149.32,6.697]
[1726929657778,0.95001229,149.34,149.3,6.6975]
[1726929657966,0.95001229,149.34,149.31,6.6973]
[1726929659267,0.95001229,149.34,149.32,6.697]
[1726929659268,0.12549,149.34,149.32,6.697]
[1726929659675,21.5862,149.38,149.33,6.6965]
[1726929659676,20.0,149.37,149.33,6.6965]
[1726929659990,0.12549,149.36,149.33,6.6965]
[1726929660286,0.95001229,149.36,149.33,6.6965]
[1726929660867,0.95001229,149.36,149.32,6.6969]
[1726929663072,7.64541229,149.36,149.31,23.4403]
[1726929663672,20.0,149.35,149.31,23.4403]
[1726929664003,0.82452229,149.34,149.31,23.4403]
[1726929665092,0.82452229,149.34,149.28,33.7480611]
[1726929665093,0.25098,149.33,149.28,17.0013611]
[1726929665301,0.82452229,149.32,149.28,17.0013611]
[1726929666096,0.12549,149.31,149.28,17.0013611]
[1726929666592,22.588,149.32,149.28,17.0013611]
[1726929666800,22.588,149.32,149.29,6.6983]
[1726929666983,16.08688881,149.32,149.29,6.6983]
[1726929667991,6.1537,149.32,149.3,6.6978]
[1726929668299,20.12549,149.34,149.3,6.6978]
[1726929668903,0.82452229,149.33,149.3,6.6978]
[1726929669287,0.12549,149.32,149.29,6.6983]
[1726929669604,0.95001229,149.32,149.29,6.6983]
[1726929671583,0.95001229,149.32,149.28,17.0013611]
[1726929672685,0.95001229,149.32,149.29,6.6982]
[1726929673713,0.95001229,149.32,149.28,23.7000611]
[1726929674502,7.64711229,149.32,149.28,17.0013611]
[1726929674710,0.12549,149.31,149.28,17.0013611]
[1726929675580,6.82379,149.29,149.28,0.2548611]
[1726929675998,26.82379,149.29,149.28,0.2548611]
[1726929676514,26.94928,149.29,149.28,0.2548611]
[1726929676698,68.19278629,149.29,149.28,0.2548611]
[1726929676901,0.25098,149.25,149.24,0.3235002]
[1726929677203,27.77560229,149.25,149.24,0.3235002]
[1726929677986,20.25098,149.25,149.24,0.3235002]
[1726929678295,21.07550229,149.25,149.24,0.3235002]
[1726929679213,26.95108,149.25,149.24,0.3235002]
[1726929679383,27.77560229,149.25,149.24,0.3235002]
[1726929683294,26.95108,149.25,149.24,0.3235002]
[1726929685298,26.95108,149.25,149.2,6.7024]
[1726929685299,0.25098,149.23,149.2,6.1283651]
[1726929685502,0.25098,149.23,149.19,23.7144611]
[1726929685503,1.07550229,149.23,149.19,23.7144611]
[1726929686012,1.07550229,149.23,149.2,6.7023]
[1726929686013,0.25098,149.23,149.2,6.7023]
[1726929686513,0.82452229,149.22,149.2,6.7023]
[1726929687018,0.25098,149.23,149.19,23.7144611]
[1726929687019,0.82452229,149.21,149.19,23.7144611]
[1726929688112,0.82452229,149.22,149.19,23.7144611]
[1726929688490,0.12549,149.21,149.19,23.7144611]
[1726929691913,0.82452229,149.21,149.19,17.0117611]
[1726929692115,0.12549,149.2,149.19,0.2548611]
[1726929693420,0.25098,149.2,149.19,0.2548611]
[1726929695493,0.12549,149.2,149.19,0.2548611]
[1726929700224,0.12549,149.2,149.19,6.9576611]
[1726929703417,0.25098,149.22,149.19,6.9576611]
[1726929703923,0.25098,149.22,149.2,6.7023]
[1726929706015,1.07550229,149.22,149.19,6.9575611]
[1726929706728,0.25098,149.22,149.2,6.7022]
[1726929707223,20.0,149.24,149.2,16.7552]
[1726929707805,20.0,149.24,149.21,6.7019]
[1726929708029,0.82452229,149.23,149.21,6.7019]
[1726929708426,0.12549,149.22,149.2,23.4575]
[1726929708815,26.7006,149.24,149.2,23.4575]
[1726929708816,0.25098,149.23,149.2,23.4575]
[1726929709522,20.12549,149.25,149.22,6.7015]
[1726929709731,26.6993,149.27,149.22,6.7015]
[1726929710907,0.25098,149.26,149.22,6.7015]
[1726929711529,0.25098,149.26,149.23,6.7008]
[1726929713509,0.25098,149.27,149.23,6.7008]
[1726929714831,2.44944427,149.31,149.22,16.7533]
[1726929714832,6.6976,149.31,149.26,6.6997]
[1726929715032,6.6976,149.31,149.27,6.6992]
[1726929716909,20.25098,149.3,149.26,6.6996]
[1726929721244,0.2548611,149.35,149.28,12.0426876]
[1726929721459,0.2548611,149.35,149.31,6.6974]
[1726929722516,0.25098,149.34,149.3,16.744]
[1726929722949,0.25098,149.34,149.31,6.6973]
[1726929723331,1.07550229,149.34,149.31,6.6973]
[1726929723746,21.07550229,149.34,149.31,6.6973]
[1726929726016,0.12549,149.34,149.31,6.6973]
[1726929726830,0.2548611,149.35,149.32,18.08113798]
[1726929727027,0.2548611,149.35,149.34,58.5586716]
[1726929727225,0.2548611,149.35,149.34,59.89556243]
[1726929727547,0.2548611,149.35,149.34,58.5586716]
[1726929727847,0.2548611,149.35,149.34,59.8957963]
[1726929728045,0.2548611,149.35,149.34,58.5586716]
[1726929728227,0.2548611,149.35,149.34,59.89742777]
[1726929728541,0.2548611,149.35,149.34,58.5586716]
[1726929730131,0.2548611,149.35,149.34,59.89739222]
[1726929730755,0.2548611,149.35,149.34,47.85470462]
[1726929730946,0.2548611,149.35,149.34,59.89739222]
[1726929739039,0.2548611,149.35,149.34,47.85470462]
[1726929739245,0.2548611,149.35,149.34,59.89739222]
[1726929744454,0.2548611,149.35,149.34,47.85470462]
[1726929744648,0.2548611,149.35,149.34,58.5586716]
[1726929746372,0.2548611,149.35,149.34,30.472984]
[1726929746753,0.2548611,149.35,149.34,31.81179076]
[1726929747669,0.2548611,149.35,149.34,43.85447836]
[1726929754183,0.2548611,149.35,149.34,42.5156716]
[1726929754558,0.2548611,149.35,149.34,43.85438641]
[1726929754885,0.2548611,149.35,149.34,77.33498641]
[1726929755869,0.2548611,149.35,149.34,75.9962716]
[1726929758281,0.2548611,149.35,149.34,6.6961]
[1726929767083,0.2548611,149.35,149.33,6.6964]
[1726929768376,0.2548611,149.35,149.32,23.4382]
[1726929768584,1.07938339,149.35,149.32,23.4382]
[1726929768891,1.07938339,149.35,149.26,27.3049876]
[1726929768892,0.12549,149.34,149.31,6.6974]
[1726929769490,0.12549,149.32,149.29,16.7452]
[1726929769696,0.12549,149.32,149.29,23.4435]
[1726929771490,0.12549,149.33,149.3,6.6977]
[1726929772887,0.12549,149.33,149.29,23.4434]
[1726929779103,0.12549,149.33,149.3,6.6978]
[1726929780787,0.12549,149.33,149.29,23.4434]
[1726929782813,0.95001229,149.33,149.29,23.4434]
[1726929783812,20.0,149.32,149.29,23.4434]
[1726929784000,0.12549,149.31,149.29,16.7452]
[1726929784305,0.12549,149.31,149.28,6.6987]
[1726929786310,0.12549,149.31,149.26,23.448]
[1726929786311,6.94868,149.31,149.26,23.448]
[1726929786614,6.94868,149.31,149.26,16.7487]
[1726929786913,0.25098,149.31,149.27,6.6992]
[1726929789504,0.12549,149.31,149.28,6.6987]
[1726929795225,0.95001229,149.31,149.26,23.448]
[1726929795405,0.12549,149.31,149.26,16.7487]
[1726929795801,0.12549,149.31,149.28,6.6987]
[1726929796328,20.12549,149.32,149.28,6.6987]
[1726929796507,20.12549,149.32,149.29,6.6983]
[1726929798119,20.12549,149.32,149.28,6.6987]
[1726929799121,0.12549,149.32,149.28,6.6987]
[1726929799819,20.12549,149.32,149.28,6.6987]
[1726929804904,26.82279,149.32,149.27,6.6992]
[1726929806027,26.82279,149.32,149.28,6.6987]
[1726929806338,20.12549,149.3,149.26,16.7487]
[1726929806501,0.82452229,149.29,149.26,16.7487]
[1726929806704,0.82452229,149.29,149.22,33.5071]
[1726929806705,6.82429,149.28,149.23,23.4529]
[1726929807026,0.82452229,149.27,149.23,16.752]
[1726929807620,0.12549,149.29,149.23,16.752]
[1726929807822,0.25098,149.29,149.23,16.752]
[1726929808330,0.25098,149.29,149.24,6.7005]
[1726929808331,20.0,149.28,149.24,6.7005]
[1726929808522,0.12549,149.27,149.24,6.7005]
[1726929808727,20.0,149.28,149.25,6.7]
[1726929808925,0.12549,149.28,149.25,6.7]
[1726929811614,20.0,149.29,149.26,6.6996]
[1726929811826,20.0,149.29,149.25,16.7497]
[1726929812139,6.3723,149.31,149.19,49.8542611]
[1726929812140,6.3723,149.31,149.29,6.6983]
[1726929812521,16.2157,149.33,149.3,6.6979]
[1726929812721,6.6271611,149.35,149.32,6.697]
[1726929812922,6.6271611,149.35,149.33,6.6965]
[1726929813512,6.6271611,149.35,149.32,6.6969]
[1726929813716,6.6271611,149.35,149.33,6.6965]
[1726929814545,6.6271611,149.35,149.34,6.6961]
[1726929817248,6.6271611,149.35,149.33,23.437]
[1726929830459,6.6271611,149.35,149.33,16.7406]
[1726929832060,6.6271611,149.35,149.32,6.6968]
[1726929836740,6.6271611,149.35,149.33,6.6964]
[1726929837044,0.2548611,149.35,149.33,8.03557594]
[1726929837242,0.2548611,149.35,149.33,6.6964]
[1726929837967,0.2548611,149.35,149.34,6.6961]
[1726929839556,0.2548611,149.35,149.33,6.6965]
[1726929840768,0.2548611,149.35,149.32,23.4388]
[1726929842973,0.2548611,149.35,149.33,8.03564812]
[1726929843571,0.2548611,149.35,149.33,6.6964]
[1726929845367,0.2548611,149.35,149.29,16.7453]
[1726929845672,0.2548611,149.35,149.31,6.6973]
[1726929846485,20.95001229,149.34,149.3,6.6978]
[1726929846640,14.17221229,149.34,149.29,23.4433]
[1726929847344,6.6967,149.33,149.29,23.4433]
[1726929847565,14.17201229,149.34,149.29,23.4433]
[1726929847767,26.6967,149.33,149.29,23.4433]
[1726929848061,0.82452229,149.32,149.29,23.4433]
[1726929848644,20.0,149.33,149.3,6.6978]
[1726929850356,20.82452229,149.33,149.3,6.6978]
[1726929852076,20.0,149.33,149.3,6.6978]
[1726929852651,20.82452229,149.33,149.3,6.6978]
[1726929852865,0.12549,149.32,149.29,23.4435]
[1726929853061,20.82452229,149.33,149.29,23.4435]
[1726929853265,20.0,149.33,149.3,6.6977]
[1726929856779,20.82452229,149.33,149.3,6.6977]
[1726929857284,20.82452229,149.33,149.29,23.4435]
[1726929858664,20.0,149.33,149.29,23.4435]
[1726929858876,20.82452229,149.33,149.29,23.4435]
[1726929859287,27.52112229,149.33,149.29,23.4435]
[1726929859860,20.0,149.33,149.3,6.6978]
[1726929860068,20.0,149.33,149.3,8.03721413]
[1726929861190,20.0,149.33,149.3,6.6978]
[1726929863677,20.0,149.33,149.29,16.7453]
[1726929863678,0.2548611,149.35,149.31,18.08251576]
[1726929863878,0.2548611,149.35,149.34,23.4364]
[1726929869273,0.2548611,149.35,149.34,16.7403]
[1726929870377,0.2548611,149.35,149.33,6.6964]
[1726929877998,0.2548611,149.35,149.34,6.6961]
[1726929880601,0.2548611,149.35,149.3,16.7443]
[1726929880794,0.2548611,149.35,149.33,6.6965]
[1726929883317,0.2548611,149.35,149.32,23.439]
[1726929886722,0.2548611,149.35,149.33,6.6965]
[1726929887220,0.2548611,149.35,149.32,23.439]
[1726929888718,0.2548611,149.35,149.32,16.7421]
[1726929888918,0.2548611,149.35,149.33,1.33906558]
[1726929889925,0.2548611,149.35,149.33,8.03546558]
[1726929890226,0.2548611,149.35,149.33,6.6964]
[1726929897424,0.2548611,149.35,149.34,1.33907155]
[1726929898230,0.2548611,149.35,149.33,6.6964]
[1726929898826,0.2548611,149.35,149.33,8.03547177]
[1726929899514,0.2548611,149.35,149.33,6.6964]
[1726929901629,0.12549,149.34,149.28,6.6987]
[1726929901937,0.12549,149.34,149.23,7.6568791]
[1726929901938,0.12549,149.31,149.26,16.7489]
[1726929902114,6.6983,149.29,149.25,6.7001]
[1726929902427,20.0,149.28,149.25,6.7001]
[1726929902928,20.0,149.28,149.23,16.7521]
[1726929902929,7.64931229,149.27,149.23,16.7521]
[1726929903130,0.25098,149.27,149.23,6.701]
[1726929903327,0.12549,149.27,149.2,12.0426876]
[1726929903507,6.1092,149.28,149.23,12.0426876]
[1726929904210,6.1092,149.28,149.26,6.6995]
[1726929909637,6.1092,149.28,149.27,23.4473]
[1726929909816,6.1092,149.28,149.27,16.7481]
[1726929910937,6.1092,149.28,149.26,6.6996]
[1726929911445,6.7001,149.25,149.2,6.702]
[1726929911734,26.82489,149.27,149.19,33.7673611]
[1726929912324,27.64941229,149.27,149.19,33.7673611]
[1726929912731,27.64941229,149.27,149.19,0.2548611]
[1726929912732,16.25689,149.25,149.19,0.2548611]
[1726929913035,16.25689,149.25,149.21,6.7018]
[1726929913036,20.12549,149.24,149.21,6.7018]
[1726929914734,0.12549,149.24,149.21,6.7018]
[1726929914942,20.12549,149.24,149.21,6.7018]
[1726929915938,7.65111229,149.23,149.19,6.9576611]
[1726929916146,20.12549,149.22,149.19,6.9576611]
[1726929917017,0.12549,149.22,149.19,6.9576611]
[1726929917219,0.12549,149.2,149.19,0.2548611]
[1726929917440,26.95338,149.2,149.19,0.2548611]
[1726929918014,43.08478,149.2,149.19,0.2548611]
[1726929918320,0.12549,149.18,149.15,1.91816003]
[1726929919140,0.12549,149.18,149.15,8.62276003]
[1726929919345,20.0,149.19,149.17,6.7033]
[1726929919839,0.12549,149.21,149.18,6.7032]
[1726929920151,20.12549,149.21,149.18,6.7032]
[1726929921018,0.12549,149.2,149.18,6.7032]
[1726929921442,0.12549,149.2,149.19,6.7028]
[1726929922026,0.12549,149.2,149.16,17.68530164]
[1726929922027,0.12549,149.2,149.18,6.7032]
[1726929922346,0.12549,149.2,149.17,6.7036]
[1726929927037,6.7038,149.17,149.15,1.91816003]
[1726929927238,20.0,149.17,149.15,0.3235002]
[1726929929060,7.65421229,149.16,149.15,0.3235002]
[1726929929354,0.95001229,149.16,149.15,0.3235002]
[1726929929960,7.77970229,149.16,149.15,0.3235002]
[1726929930251,27.77970229,149.16,149.15,0.3235002]
[1726929931939,26.95518,149.16,149.15,0.3235002]
[1726929939779,26.95518,149.16,149.14,0.1024649]
[1726929939780,26.95558,149.15,149.14,0.1024649]
[1726929939966,27.78010229,149.15,149.14,0.1024649]
[1726929940375,6.7056,149.13,149.1,0.2548611]
[1726929940556,0.95001229,149.12,149.1,0.2548611]
[1726929940763,0.12549,149.12,149.1,0.2548611]
[1726929943682,6.571,149.18,149.1,0.2548611]
[1726929943977,6.571,149.18,149.13,6.7054]
[1726929944188,6.571,149.18,149.13,16.7633]
[1726929944189,6.7039,149.17,149.13,16.7633]
[1726929944691,7.52882229,149.16,149.11,6.7064]
[1726929945069,20.0,149.14,149.1,23.7284611]
[1726929945272,0.12549,149.13,149.1,23.7284611]
[1726929946566,0.25098,149.13,149.1,23.7284611]
[1726929947076,20.12549,149.14,149.11,7.9646841]
[1726929947263,0.12549,149.14,149.11,6.7063]
[1726929947463,20.25098,149.15,149.11,6.7063]
[1726929952587,26.95568,149.15,149.11,6.7063]
[1726929957469,6.7056,149.13,149.1,0.2548611]
[1726929957693,20.25098,149.15,149.1,6.9615611]
[1726929957694,20.12549,149.14,149.1,6.9615611]
[1726929963292,0.95001229,149.13,149.1,0.2548611]
[1726929963491,20.12549,149.12,149.1,0.2548611]
[1726929963708,0.82452229,149.11,149.1,0.2548611]
[1726929964015,0.95001229,149.11,149.1,0.2548611]
[1726929964221,0.12549,149.11,149.1,0.2548611]
[1726929964585,20.0,149.14,149.11,23.472]
[1726929965192,0.82452229,149.13,149.11,16.7656]
[1726929965399,26.7052,149.14,149.11,16.7656]
[1726929965712,0.25098,149.13,149.11,16.7656]
[1726929966505,0.12549,149.13,149.11,16.7656]
[1726929966706,0.12549,149.13,149.11,23.4719]
[1726929966890,20.0,149.15,149.14,6.7051]
[1726929967093,20.0,149.15,149.13,6.7054]
[1726929967293,20.0,149.17,149.13,6.7054]
[1726929967695,15.0705,149.2,149.14,1.34091039]
[1726929967909,6.077,149.22,149.11,16.1706]
[1726929967910,6.077,149.22,149.13,13.38339725]
[1726929968092,6.077,149.22,149.15,16.7609]
[1726929968611,6.077,149.22,149.19,6.7028]
[1726929969402,6.077,149.22,149.17,16.7583]
[1726929969721,0.82452229,149.21,149.17,16.7583]
[1726929970288,0.25098,149.2,149.17,16.7583]
[1726929970600,0.82452229,149.19,149.17,16.7583]
[1726929971393,1.07550229,149.2,149.17,16.7583]
[1726929972123,1.07550229,149.2,149.11,28.2132876]
[1726929972124,0.25098,149.18,149.14,23.4677]
[1726929972305,20.25098,149.18,149.14,23.4677]
[1726929972618,20.25098,149.18,149.15,6.7046]
[1726929974096,20.0,149.21,149.16,6.7041]
[1726929974290,0.12549,149.2,149.17,6.7037]
[1726929974512,6.077,149.22,149.18,1.34065053]
[1726929974716,6.077,149.22,149.21,6.7019]
[1726929974927,6.3318611,149.26,149.22,6.7011]
[1726929975213,7.52472229,149.25,149.21,6.7018]
[1726929975806,6.3318611,149.26,149.17,16.7589]
[1726929975993,6.7007,149.24,149.19,6.7027]
[1726929976208,20.0,149.23,149.19,6.7027]
[1726929976415,0.12549,149.22,149.19,6.7027]
[1726929980404,0.12549,149.22,149.2,6.7023]
[1726929983929,20.0,149.25,149.19,16.7563]
[1726929984136,13.0319611,149.26,149.19,16.7563]
[1726929984137,0.2548611,149.26,149.25,6.7001]
[1726929986721,0.2548611,149.26,149.2,16.7556]
[1726929986903,6.9545611,149.26,149.21,6.7019]
[1726929987301,6.95118,149.25,149.2,23.4578]
[1726929987907,7.77570229,149.25,149.2,23.4578]
[1726929988109,6.7006,149.24,149.2,23.4578]
[1726929989227,6.7006,149.24,149.2,16.7556]
[1726929989727,6.95198,149.23,149.19,6.7027]
[1726929990723,0.25098,149.23,149.19,6.7027]
[1726929992506,0.25098,149.23,149.21,6.7017]
[1726929992712,0.25098,149.23,149.2,8.04260566]
[1726929993114,0.25098,149.23,149.2,1.34030566]
[1726929993413,0.25098,149.23,149.19,23.4588]
[1726929993620,0.25098,149.23,149.19,16.7561]
[1726929993934,0.25098,149.23,149.19,23.4588]
[1726929995541,6.95208,149.23,149.19,16.7561]
[1726929999347,0.82452229,149.22,149.19,16.7561]
[1726929999839,7.52602229,149.22,149.19,16.7561]
[1726930000035,6.7019,149.21,149.17,6.7036]
[1726930000214,7.52642229,149.21,149.16,16.7599]
[1726930000421,6.7019,149.21,149.16,16.7599]
[1726930001339,6.7019,149.21,149.17,6.7036]
[1726930001941,0.12549,149.21,149.17,6.7036]
[1726930002122,0.25098,149.21,149.17,6.7036]
[1726930005439,0.82452229,149.2,149.17,6.7036]
[1726930005637,0.12549,149.19,149.16,16.7599]
[1726930005853,6.69108,149.19,149.13,16.7632]
[1726930006051,0.82452229,149.18,149.13,16.7632]
[1726930006231,0.25098,149.17,149.14,6.7049]
[1726930006548,0.25098,149.17,149.13,16.7632]
[1726930006723,0.25098,149.17,149.13,23.4683]
[1726930007232,0.25098,149.17,149.14,6.7049]
[1726930007426,1.07550229,149.17,149.14,6.7049]
[1726930010058,0.25098,149.17,149.14,6.7049]
[1726930016235,0.12549,149.15,149.13,16.7632]
[1726930016434,0.25098,149.13,149.1,25.32325569]
[1726930016649,0.25098,149.13,149.1,23.7280611]
[1726930016836,0.25098,149.13,149.1,0.2548611]
[1726930017323,20.25098,149.13,149.1,6.9616611]
[1726930018048,0.25098,149.13,149.1,6.9616611]
[1726930021729,20.25098,149.13,149.1,0.2548611]
[1726930021934,6.84502229,149.14,149.1,0.2548611]
[1726930021935,26.95738,149.11,149.1,0.2548611]
[1726930022131,20.25098,149.1,149.06,0.3235002]
[1726930022331,16.31952229,149.12,149.06,0.3235002]
[1726930022332,20.25098,149.08,149.06,0.3235002]
[1726930022557,0.82452229,149.07,149.06,0.3235002]
[1726930022932,1.07550229,149.07,149.06,0.3235002]
[1726930023350,0.25098,149.07,149.06,0.3235002]
[1726930025150,0.12549,149.07,149.06,0.3235002]
[1726930025340,0.12549,149.07,149.06,7.0322002]
[1726930025535,0.12549,149.07,149.05,0.1024649]
[1726930025536,15.5258,149.06,149.05,0.1024649]
[1726930025743,35.77678,149.06,149.05,0.1024649]
[1726930026044,20.25098,149.05,149.01,23.7428611]
[1726930026247,0.25098,149.03,149.01,23.7428611]
[1726930026654,0.25098,149.03,149.01,22.7428611]
[1726930026845,0.25098,149.03,148.99,6.7115]